[Event "*** Titled Tuesday Blitz"]
[Site "Chess.com"]
[Date "2020.05.19"]
[Round "1"]
[White "Gajuchess"]
[Black "Ceejay271"]
[Result "1-0"]
[WhiteElo "2727"]
[BlackElo "2385"]
[TimeControl "180+1"]
[EndTime "12:08:00 PDT"]
[Termination "Gajuchess won on time"]

1. d4 {[%clk 0:02:59.1]} 1... Nf6 {[%clk 0:02:58.8]} 2. c4 {[%clk 0:02:58.3]}
2... e6 {[%clk 0:02:58.3]} 3. Nf3 {[%clk 0:02:57.9]} 3... d5 {[%clk 0:02:57.6]}
4. e3 {[%clk 0:02:58]} 4... Be7 {[%clk 0:02:56.5]} 5. Nc3 {[%clk 0:02:57.9]}
5... O-O {[%clk 0:02:56.9]} 6. b3 {[%clk 0:02:57.9]} 6... b6 {[%clk 0:02:54.8]}
7. Bb2 {[%clk 0:02:53]} 7... Ba6 {[%clk 0:02:52.6]} 8. Be2 {[%clk 0:02:46.1]}
8... Nc6 {[%clk 0:02:51.4]} 9. O-O {[%clk 0:02:45.2]} 9... Na5 {[%clk
0:02:48.1]} 10. cxd5 {[%clk 0:02:40.3]} 10... Bxe2 {[%clk 0:02:46.3]} 11. Qxe2
{[%clk 0:02:41.2]} 11... Nxd5 {[%clk 0:02:38.4]} 12. e4 {[%clk 0:02:41.2]} 12...
Nxc3 {[%clk 0:02:37.5]} 13. Bxc3 {[%clk 0:02:41.6]} 13... c5 {[%clk 0:02:31.2]}
14. dxc5 {[%clk 0:02:31.9]} 14... bxc5 {[%clk 0:02:28]} 15. Ne5 {[%clk
0:02:28.4]} 15... Qc7 {[%clk 0:02:14]} 16. Rad1 {[%clk 0:02:22.1]} 16... Rad8
{[%clk 0:02:07]} 17. Bxa5 {[%clk 0:02:20.9]} 17... Qxe5 {[%clk 0:01:58]} 18.
Bxd8 {[%clk 0:02:20.2]} 18... Bxd8 {[%clk 0:01:55.7]} 19. Rd7 {[%clk 0:02:19.4]}
19... Bb6 {[%clk 0:01:52.9]} 20. Qc4 {[%clk 0:02:13.6]} 20... h5 {[%clk
0:01:43.8]} 21. a4 {[%clk 0:02:06.3]} 21... h4 {[%clk 0:01:42.6]} 22. Rfd1
{[%clk 0:02:02.9]} 22... h3 {[%clk 0:01:41.3]} 23. gxh3 {[%clk 0:01:28]} 23...
Qg5+ {[%clk 0:01:37.8]} 24. Kf1 {[%clk 0:01:25]} 24... Qh4 {[%clk 0:01:37.3]}
25. R1d3 {[%clk 0:01:19.1]} 25... Qf4 {[%clk 0:01:30.5]} 26. Kg2 {[%clk
0:01:18.5]} 26... g6 {[%clk 0:01:19.7]} 27. Rf3 {[%clk 0:01:16.6]} 27... Qg5+
{[%clk 0:01:14.1]} 28. Rg3 {[%clk 0:01:16.8]} 28... Qf6 {[%clk 0:01:06.9]} 29.
Rg4 {[%clk 0:01:05.6]} 29... Kg7 {[%clk 0:01:03.7]} 30. Rd3 {[%clk 0:01:00.7]}
30... Qe5 {[%clk 0:00:52.2]} 31. Rgg3 {[%clk 0:00:53.5]} 31... Rh8 {[%clk
0:00:47.3]} 32. Qc3 {[%clk 0:00:52.8]} 32... Qxc3 {[%clk 0:00:44.3]} 33. Rxc3
{[%clk 0:00:53.7]} 33... Rh4 {[%clk 0:00:38]} 34. Rg4 {[%clk 0:00:53.8]} 34...
Rh5 {[%clk 0:00:37]} 35. f4 {[%clk 0:00:51.7]} 35... f5 {[%clk 0:00:31.7]} 36.
exf5 {[%clk 0:00:51.9]} 36... Rxf5 {[%clk 0:00:31.2]} 37. Kf3 {[%clk 0:00:46.5]}
37... Kf6 {[%clk 0:00:30.3]} 38. Ke4 {[%clk 0:00:46.7]} 38... Rh5 {[%clk
0:00:28.1]} 39. Rd3 {[%clk 0:00:45.9]} 39... Rh7 {[%clk 0:00:25]} 40. Rdg3
{[%clk 0:00:43.4]} 40... Rh6 {[%clk 0:00:21.7]} 41. h4 {[%clk 0:00:43.6]} 41...
Bc7 {[%clk 0:00:18.3]} 42. h5 {[%clk 0:00:43.1]} 42... gxh5 {[%clk 0:00:16.3]}
43. Rg7 {[%clk 0:00:44]} 43... Bb6 {[%clk 0:00:16.1]} 44. Rd7 {[%clk 0:00:35.6]}
44... h4 {[%clk 0:00:13.7]} 45. Rg8 {[%clk 0:00:32.2]} 45... Rh5 {[%clk
0:00:09.9]} 46. Rf8+ {[%clk 0:00:30.2]} 46... Kg6 {[%clk 0:00:09.4]} 47. Re7
{[%clk 0:00:30.1]} 47... h3 {[%clk 0:00:04.8]} 48. Rxe6+ {[%clk 0:00:30]} 48...
Kg7 {[%clk 0:00:05.5]} 49. Rf5 {[%clk 0:00:29.8]} 49... Rh4 {[%clk 0:00:05.3]}
50. Rd5 {[%clk 0:00:28.5]} 50... Kf7 {[%clk 0:00:04.5]} 51. Rc6 {[%clk
0:00:27.8]} 51... Ke7 {[%clk 0:00:04.1]} 52. a5 {[%clk 0:00:28.1]} 52... Bxa5
{[%clk 0:00:03.8]} 53. Rdxc5 {[%clk 0:00:27.3]} 53... Bb6 {[%clk 0:00:04.7]} 54.
Re5+ {[%clk 0:00:27.8]} 54... Kd7 {[%clk 0:00:04.5]} 55. Rg6 {[%clk 0:00:27.9]}
55... Bc7 {[%clk 0:00:03.9]} 56. Rd5+ {[%clk 0:00:27.3]} 56... Kc8 {[%clk
0:00:03.3]} 57. Rf5 {[%clk 0:00:25.8]} 57... Rh7 {[%clk 0:00:02.2]} 58. Rg8+
{[%clk 0:00:24.4]} 58... Kb7 {[%clk 0:00:02]} 59. Kf3 {[%clk 0:00:25.3]} 59...
Rd7 {[%clk 0:00:01.2]} 60. Rb5+ {[%clk 0:00:25.3]} 1-0

[Event "*** Titled Tuesday Blitz"]
[Site "Chess.com"]
[Date "2020.05.19"]
[Round "1"]
[White "SubrotaBiswas"]
[Black "Alexander_Donchenko"]
[Result "1-0"]
[WhiteElo "2385"]
[BlackElo "2688"]
[TimeControl "180+1"]
[EndTime "12:08:01 PDT"]
[Termination "SubrotaBiswas won by resignation"]

1. d4 {[%clk 0:03:00.4]} 1... Nf6 {[%clk 0:02:59.6]} 2. Nf3 {[%clk 0:02:59.2]}
2... d5 {[%clk 0:02:59.4]} 3. c4 {[%clk 0:02:59.3]} 3... e6 {[%clk 0:02:59.7]}
4. Nc3 {[%clk 0:02:59.6]} 4... Bb4 {[%clk 0:02:59.6]} 5. Bd2 {[%clk 0:02:58.6]}
5... O-O {[%clk 0:02:58.9]} 6. e3 {[%clk 0:02:58.8]} 6... b6 {[%clk 0:02:59.1]}
7. Bd3 {[%clk 0:02:57.3]} 7... Ba6 {[%clk 0:02:58.7]} 8. Qe2 {[%clk 0:02:56.3]}
8... Nbd7 {[%clk 0:02:56.1]} 9. O-O {[%clk 0:02:54.5]} 9... Qe7 {[%clk
0:02:55.7]} 10. cxd5 {[%clk 0:02:52.9]} 10... Bxd3 {[%clk 0:02:55.4]} 11. Qxd3
{[%clk 0:02:53.8]} 11... exd5 {[%clk 0:02:55.4]} 12. a3 {[%clk 0:02:51.7]} 12...
Bxc3 {[%clk 0:02:54.2]} 13. bxc3 {[%clk 0:02:51.9]} 13... Qe6 {[%clk 0:02:48.6]}
14. Rfc1 {[%clk 0:02:47.8]} 14... b5 {[%clk 0:02:22.2]} 15. Qxb5 {[%clk
0:02:47]} 15... Nb6 {[%clk 0:02:22.3]} 16. Ne5 {[%clk 0:02:41.9]} 16... Ne4
{[%clk 0:02:20]} 17. Be1 {[%clk 0:02:41.8]} 17... f6 {[%clk 0:02:17.5]} 18. Qc6
{[%clk 0:02:40.1]} 18... Rfe8 {[%clk 0:02:09.6]} 19. Qxe6+ {[%clk 0:02:38.6]}
19... Rxe6 {[%clk 0:02:10.5]} 20. Nd3 {[%clk 0:02:38.1]} 20... Nc4 {[%clk
0:02:10.3]} 21. f3 {[%clk 0:02:38.2]} 21... Ned6 {[%clk 0:02:05.2]} 22. Nf4
{[%clk 0:02:36.3]} 22... Rxe3 {[%clk 0:02:00.5]} 23. Nxd5 {[%clk 0:02:35.4]}
23... Re2 {[%clk 0:02:01]} 24. Nxc7 {[%clk 0:02:32.7]} 24... Rb8 {[%clk
0:01:49.1]} 25. Rab1 {[%clk 0:02:26.1]} 25... Rxb1 {[%clk 0:01:45.6]} 26. Rxb1
{[%clk 0:02:27]} 26... Nxa3 {[%clk 0:01:45.9]} 27. Rc1 {[%clk 0:02:25.9]} 27...
Nac4 {[%clk 0:01:43.8]} 28. Nd5 {[%clk 0:02:25.5]} 28... a5 {[%clk 0:01:42.9]}
29. Nf4 {[%clk 0:02:25.4]} 29... Ra2 {[%clk 0:01:32.9]} 30. Nd3 {[%clk
0:02:25.3]} 30... a4 {[%clk 0:01:31.3]} 31. Nb4 {[%clk 0:02:23.2]} 31... Rb2
{[%clk 0:01:29.2]} 32. Ra1 {[%clk 0:02:21.7]} 32... a3 {[%clk 0:01:27.4]} 33. d5
{[%clk 0:02:18.4]} 33... Kf7 {[%clk 0:01:22.2]} 34. Bg3 {[%clk 0:02:17.9]} 34...
Nb5 {[%clk 0:01:20]} 35. d6 {[%clk 0:02:16.3]} 35... Rb3 {[%clk 0:01:10]} 36. d7
{[%clk 0:01:58.2]} 36... Ke7 {[%clk 0:01:08.8]} 37. Rd1 {[%clk 0:01:55.2]} 37...
Nbd6 {[%clk 0:01:04]} 38. Bxd6+ {[%clk 0:01:54.2]} 38... Kxd7 {[%clk 0:01:03.2]}
39. Bf8+ {[%clk 0:01:50.6]} 39... Ke6 {[%clk 0:01:02.3]} 40. Bxg7 {[%clk
0:01:51.5]} 40... Rxc3 {[%clk 0:00:57.7]} 41. Bxf6 {[%clk 0:01:50.2]} 41... Rb3
{[%clk 0:00:57.5]} 42. Nd5 {[%clk 0:01:48.7]} 42... a2 {[%clk 0:00:55.2]} 43.
Ba1 {[%clk 0:01:40.9]} 43... Rb1 {[%clk 0:00:52]} 44. Nc3 {[%clk 0:01:40.7]}
44... Nd2 {[%clk 0:00:46.6]} 45. Kf2 {[%clk 0:01:39.5]} 45... Rxd1 {[%clk
0:00:36.1]} 46. Nxd1 {[%clk 0:01:39.3]} 46... Nb3 {[%clk 0:00:37]} 47. Nc3
{[%clk 0:01:37.2]} 47... Nxa1 {[%clk 0:00:36.8]} 48. Nxa2 {[%clk 0:01:37.6]}
48... Nc2 {[%clk 0:00:37.4]} 49. Nc3 {[%clk 0:01:35.6]} 49... Nb4 {[%clk
0:00:36.8]} 50. Ke3 {[%clk 0:01:34.2]} 50... Nc2+ {[%clk 0:00:36.1]} 51. Kd2
{[%clk 0:01:32.6]} 51... Nd4 {[%clk 0:00:35.8]} 52. Kd3 {[%clk 0:01:33]} 52...
Nf5 {[%clk 0:00:35.7]} 53. Ne4 {[%clk 0:01:30.8]} 53... Nh4 {[%clk 0:00:35.7]}
54. Ng5+ {[%clk 0:01:26.1]} 54... Kf5 {[%clk 0:00:35.5]} 55. g3 {[%clk
0:01:25.1]} 55... Ng6 {[%clk 0:00:04.4]} 56. Ne4 {[%clk 0:01:24.8]} 56... Ne5+
{[%clk 0:00:03.2]} 57. Ke2 {[%clk 0:01:25]} 57... h5 {[%clk 0:00:03.9]} 58. h3
{[%clk 0:01:22.7]} 58... Nc6 {[%clk 0:00:02.4]} 59. Ke3 {[%clk 0:01:22.5]} 59...
Ne5 {[%clk 0:00:02.2]} 60. g4+ {[%clk 0:01:22.8]} 60... hxg4 {[%clk 0:00:02.1]}
61. Ng3+ {[%clk 0:01:19.1]} 61... Kg5 {[%clk 0:00:01.3]} 62. f4+ {[%clk
0:01:19.2]} 62... Kg6 {[%clk 0:00:01.8]} 63. fxe5 {[%clk 0:01:19.3]} 63... gxh3
{[%clk 0:00:02.7]} 64. Ke4 {[%clk 0:01:19.3]} 64... h2 {[%clk 0:00:02.6]} 65.
Kf4 {[%clk 0:01:17.3]} 65... Kf7 {[%clk 0:00:02.8]} 66. Kf5 {[%clk 0:01:17.5]}
66... Ke7 {[%clk 0:00:03.4]} 67. e6 {[%clk 0:01:17.8]} 67... Ke8 {[%clk
0:00:03.4]} 68. Kf6 {[%clk 0:01:17.9]} 68... Kf8 {[%clk 0:00:03.9]} 69. Nh1
{[%clk 0:01:18.3]} 69... Ke8 {[%clk 0:00:04.3]} 70. e7 {[%clk 0:01:18.8]} 70...
Kd7 {[%clk 0:00:04.4]} 71. Kf7 {[%clk 0:01:19.7]} 1-0

[Event "*** Titled Tuesday Blitz"]
[Site "Chess.com"]
[Date "2020.05.19"]
[Round "1"]
[White "vpsetter"]
[Black "saisree"]
[Result "1-0"]
[WhiteElo "2664"]
[BlackElo "2355"]
[TimeControl "180+1"]
[EndTime "12:08:01 PDT"]
[Termination "vpsetter won by checkmate"]

1. e4 {[%clk 0:02:55]} 1... c6 {[%clk 0:02:59.2]} 2. d4 {[%clk 0:02:55.1]} 2...
d5 {[%clk 0:03:00]} 3. Nc3 {[%clk 0:02:55.5]} 3... dxe4 {[%clk 0:03:00.2]} 4.
Nxe4 {[%clk 0:02:56.4]} 4... Bf5 {[%clk 0:03:00.8]} 5. Ng3 {[%clk 0:02:56.7]}
5... Bg6 {[%clk 0:03:01.5]} 6. h4 {[%clk 0:02:57.5]} 6... h6 {[%clk 0:03:02]} 7.
Nf3 {[%clk 0:02:57.7]} 7... Nd7 {[%clk 0:03:02.6]} 8. h5 {[%clk 0:02:57.4]} 8...
Bh7 {[%clk 0:03:03.2]} 9. Bd3 {[%clk 0:02:58.3]} 9... Bxd3 {[%clk 0:03:03.8]}
10. Qxd3 {[%clk 0:02:59.2]} 10... e6 {[%clk 0:03:04.4]} 11. Bd2 {[%clk
0:02:56.6]} 11... Ngf6 {[%clk 0:03:04.8]} 12. O-O-O {[%clk 0:02:56.6]} 12... Be7
{[%clk 0:03:05.5]} 13. Kb1 {[%clk 0:02:53.5]} 13... O-O {[%clk 0:03:06]} 14. c4
{[%clk 0:02:50.1]} 14... b5 {[%clk 0:02:59.5]} 15. c5 {[%clk 0:02:40.9]} 15...
Nd5 {[%clk 0:02:48.5]} 16. Qe2 {[%clk 0:02:37.1]} 16... Re8 {[%clk 0:02:42.8]}
17. Ne4 {[%clk 0:02:33.4]} 17... f5 {[%clk 0:02:17.3]} 18. Nc3 {[%clk
0:02:01.7]} 18... Bf6 {[%clk 0:02:10.3]} 19. Nxd5 {[%clk 0:01:46.9]} 19... exd5
{[%clk 0:02:08.7]} 20. Qd3 {[%clk 0:01:46.7]} 20... Re4 {[%clk 0:01:46.6]} 21.
g3 {[%clk 0:01:46.5]} 21... Nf8 {[%clk 0:01:38.9]} 22. Be3 {[%clk 0:01:33.1]}
22... Qd7 {[%clk 0:01:29.9]} 23. Nd2 {[%clk 0:01:30.7]} 23... Re7 {[%clk
0:01:26.3]} 24. Bf4 {[%clk 0:01:24.3]} 24... Ne6 {[%clk 0:01:21.6]} 25. Bd6
{[%clk 0:01:13.5]} 25... Rf7 {[%clk 0:01:18.6]} 26. Nf3 {[%clk 0:01:13.1]} 26...
Ng5 {[%clk 0:01:05.7]} 27. Ne5 {[%clk 0:00:42.5]} 27... Bxe5 {[%clk 0:01:05]}
28. Bxe5 {[%clk 0:00:42.4]} 28... Ne4 {[%clk 0:01:02.2]} 29. Qe3 {[%clk
0:00:39.6]} 29... Re8 {[%clk 0:00:59.9]} 30. Qf4 {[%clk 0:00:35.2]} 30... Rfe7
{[%clk 0:00:53.9]} 31. Rh2 {[%clk 0:00:26.6]} 31... Nxc5 {[%clk 0:00:49.5]} 32.
g4 {[%clk 0:00:16.7]} 32... Ne4 {[%clk 0:00:34.6]} 33. gxf5 {[%clk 0:00:15.7]}
33... Rf8 {[%clk 0:00:35.3]} 34. f3 {[%clk 0:00:10.9]} 34... Ng5 {[%clk
0:00:32.3]} 35. f6 {[%clk 0:00:09.5]} 35... gxf6 {[%clk 0:00:31.2]} 36. Bd6
{[%clk 0:00:09.7]} 36... Ref7 {[%clk 0:00:25.2]} 37. Bxf8 {[%clk 0:00:09.7]}
37... Rxf8 {[%clk 0:00:25.9]} 38. Re2 {[%clk 0:00:08.9]} 38... Rf7 {[%clk
0:00:24.2]} 39. Rde1 {[%clk 0:00:09.2]} 39... Kg7 {[%clk 0:00:21.3]} 40. a3
{[%clk 0:00:06.2]} 40... a5 {[%clk 0:00:19.3]} 41. Ka2 {[%clk 0:00:06.2]} 41...
b4 {[%clk 0:00:19.4]} 42. a4 {[%clk 0:00:06.7]} 42... c5 {[%clk 0:00:19.5]} 43.
dxc5 {[%clk 0:00:04.9]} 43... Qxa4+ {[%clk 0:00:19.4]} 44. Kb1 {[%clk
0:00:05.6]} 44... b3 {[%clk 0:00:20.1]} 45. Qxa4 {[%clk 0:00:05.3]} 45... Rc7
{[%clk 0:00:19.8]} 46. c6 {[%clk 0:00:05.4]} 46... f5 {[%clk 0:00:19.3]} 47.
Re7+ {[%clk 0:00:05.3]} 47... Kf6 {[%clk 0:00:20]} 48. Rxc7 {[%clk 0:00:05.7]}
48... f4 {[%clk 0:00:19.6]} 49. Rf7+ {[%clk 0:00:06.6]} 49... Kxf7 {[%clk
0:00:19.9]} 50. c7 {[%clk 0:00:07.5]} 50... Kf6 {[%clk 0:00:20.5]} 51. Qd7
{[%clk 0:00:07.9]} 51... Nf7 {[%clk 0:00:21.4]} 52. Qe7+ {[%clk 0:00:08.3]}
52... Kf5 {[%clk 0:00:21.4]} 53. Qxf7+ {[%clk 0:00:07.4]} 53... Kg5 {[%clk
0:00:22.3]} 54. Qg6+ {[%clk 0:00:07.8]} 54... Kh4 {[%clk 0:00:22.9]} 55. Rh1#
{[%clk 0:00:07.7]} 1-0

[Event "*** Titled Tuesday Blitz"]
[Site "Chess.com"]
[Date "2020.05.19"]
[Round "1"]
[White "AlexTruskavetsky"]
[Black "Chepaschess"]
[Result "0-1"]
[WhiteElo "2422"]
[BlackElo "2816"]
[TimeControl "180+1"]
[EndTime "12:08:02 PDT"]
[Termination "Chepaschess won on time"]

1. d4 {[%clk 0:03:00.9]} 1... Nf6 {[%clk 0:02:59.6]} 2. Bg5 {[%clk 0:02:59.1]}
2... c5 {[%clk 0:02:59.2]} 3. Bxf6 {[%clk 0:02:55.6]} 3... exf6 {[%clk
0:02:57.9]} 4. d5 {[%clk 0:02:52.7]} 4... d6 {[%clk 0:02:56.9]} 5. c4 {[%clk
0:02:48.7]} 5... f5 {[%clk 0:02:55.9]} 6. Nc3 {[%clk 0:02:48.5]} 6... g6 {[%clk
0:02:56.3]} 7. e3 {[%clk 0:02:43.3]} 7... Bg7 {[%clk 0:02:56.5]} 8. Bd3 {[%clk
0:02:32.9]} 8... Nd7 {[%clk 0:02:47.2]} 9. h4 {[%clk 0:02:28.7]} 9... h5 {[%clk
0:02:46.5]} 10. Nf3 {[%clk 0:02:26.8]} 10... Ne5 {[%clk 0:02:41.4]} 11. Be2
{[%clk 0:02:25.5]} 11... Ng4 {[%clk 0:02:38.3]} 12. Qd2 {[%clk 0:02:18.7]} 12...
Bd7 {[%clk 0:02:37.8]} 13. Ng5 {[%clk 0:02:17.4]} 13... Qe7 {[%clk 0:02:33.3]}
14. a4 {[%clk 0:02:14.6]} 14... Bf6 {[%clk 0:02:27.5]} 15. a5 {[%clk 0:02:06]}
15... Bxg5 {[%clk 0:02:25.1]} 16. hxg5 {[%clk 0:02:05.1]} 16... Qxg5 {[%clk
0:02:25.7]} 17. Nb5 {[%clk 0:01:33.4]} 17... Bxb5 {[%clk 0:02:21.7]} 18. cxb5
{[%clk 0:01:34.3]} 18... O-O {[%clk 0:02:16.7]} 19. Ra4 {[%clk 0:01:29.1]} 19...
Rae8 {[%clk 0:02:13]} 20. Rf4 {[%clk 0:01:25.6]} 20... Re5 {[%clk 0:02:06.5]}
21. O-O {[%clk 0:00:44.9]} 21... Rfe8 {[%clk 0:01:52.4]} 22. b4 {[%clk
0:00:40.4]} 22... cxb4 {[%clk 0:01:43.7]} 23. Qxb4 {[%clk 0:00:33.1]} 23... Qe7
{[%clk 0:01:34]} 24. Rc1 {[%clk 0:00:28.3]} 24... Nf6 {[%clk 0:01:22.7]} 25. Bf3
{[%clk 0:00:27]} 25... Nxd5 {[%clk 0:01:22.7]} 26. Bxd5 {[%clk 0:00:25.9]} 26...
Rxd5 {[%clk 0:01:23.2]} 27. Rfc4 {[%clk 0:00:25.3]} 27... Qe5 {[%clk 0:01:20.4]}
28. b6 {[%clk 0:00:21.8]} 28... Rxa5 {[%clk 0:01:14.6]} 29. bxa7 {[%clk
0:00:18.8]} 29... Rxa7 {[%clk 0:01:15.5]} 30. Rc7 {[%clk 0:00:15.4]} 30... Ra1
{[%clk 0:01:14.1]} 31. Rxa1 {[%clk 0:00:14.3]} 31... Qxa1+ {[%clk 0:01:13.6]}
32. Kh2 {[%clk 0:00:14.7]} 32... Qe5+ {[%clk 0:01:14.2]} 33. g3 {[%clk
0:00:14.7]} 33... b5 {[%clk 0:01:12.6]} 34. Rb7 {[%clk 0:00:12.4]} 34... Qc5
{[%clk 0:01:06.1]} 35. Rxb5 {[%clk 0:00:11.7]} 35... Qxb4 {[%clk 0:01:06.1]} 36.
Rxb4 {[%clk 0:00:11.3]} 36... Kg7 {[%clk 0:01:05.9]} 37. Rb7 {[%clk 0:00:10.9]}
37... Kf6 {[%clk 0:01:05.5]} 38. Rd7 {[%clk 0:00:11.2]} 38... Ke6 {[%clk
0:01:05.8]} 39. Ra7 {[%clk 0:00:10.6]} 39... Re7 {[%clk 0:01:06]} 40. Ra4 {[%clk
0:00:08.4]} 40... Rb7 {[%clk 0:01:06.1]} 41. Kg2 {[%clk 0:00:08.4]} 41... Ke5
{[%clk 0:01:05.6]} 42. Ra5+ {[%clk 0:00:08.3]} 42... Ke6 {[%clk 0:01:05.9]} 43.
Ra4 {[%clk 0:00:08.5]} 43... Rb5 {[%clk 0:01:05.9]} 44. Rc4 {[%clk 0:00:07.9]}
44... Rc5 {[%clk 0:01:05.4]} 45. Ra4 {[%clk 0:00:08.2]} 45... Kf6 {[%clk
0:01:05.9]} 46. Rb4 {[%clk 0:00:08.2]} 46... Re5 {[%clk 0:01:03.6]} 47. Ra4
{[%clk 0:00:07.8]} 47... Re4 {[%clk 0:01:03.5]} 48. Ra6 {[%clk 0:00:08.2]} 48...
Ke6 {[%clk 0:01:04]} 49. Ra5 {[%clk 0:00:06.8]} 49... h4 {[%clk 0:01:03.4]} 50.
gxh4 {[%clk 0:00:06.1]} 50... Rxh4 {[%clk 0:01:03.3]} 51. Ra8 {[%clk 0:00:06.5]}
51... Rb4 {[%clk 0:01:00.6]} 52. Re8+ {[%clk 0:00:06.1]} 52... Kf6 {[%clk
0:01:00.4]} 53. Rd8 {[%clk 0:00:06.3]} 53... Ke7 {[%clk 0:01:00.6]} 54. Ra8
{[%clk 0:00:05.8]} 54... f4 {[%clk 0:01:00.7]} 55. Ra5 {[%clk 0:00:04.4]} 55...
fxe3 {[%clk 0:01:00.4]} 56. fxe3 {[%clk 0:00:05.3]} 56... Re4 {[%clk 0:01:00.7]}
57. Kf3 {[%clk 0:00:05.4]} 57... Re5 {[%clk 0:01:01.3]} 58. Ra7+ {[%clk
0:00:05]} 58... Ke6 {[%clk 0:01:01.8]} 59. Ra6 {[%clk 0:00:04.8]} 59... f5
{[%clk 0:01:00.5]} 60. Ra8 {[%clk 0:00:04.2]} 60... g5 {[%clk 0:01:00.9]} 61.
Re8+ {[%clk 0:00:02.8]} 61... Kf7 {[%clk 0:01:00.5]} 62. Rd8 {[%clk 0:00:02.5]}
62... Rd5 {[%clk 0:00:58.3]} 63. Rd7+ {[%clk 0:00:01.3]} 63... Kf6 {[%clk
0:00:58.7]} 64. Rd8 {[%clk 0:00:01.6]} 64... Ke7 {[%clk 0:00:50.1]} 65. Rg8
{[%clk 0:00:01.5]} 65... g4+ {[%clk 0:00:45.2]} 0-1

[Event "*** Titled Tuesday Blitz"]
[Site "Chess.com"]
[Date "2020.05.19"]
[Round "1"]
[White "Shubinkirill2003"]
[Black "PowerThinking2650"]
[Result "1-0"]
[WhiteElo "2578"]
[BlackElo "2286"]
[TimeControl "180+1"]
[EndTime "12:08:03 PDT"]
[Termination "Shubinkirill2003 won on time"]

1. e4 {[%clk 0:03:00.5]} 1... e5 {[%clk 0:02:59.3]} 2. Nf3 {[%clk 0:03:00]} 2...
Nc6 {[%clk 0:02:58.7]} 3. Bb5 {[%clk 0:03:00.4]} 3... a6 {[%clk 0:02:58.2]} 4.
Ba4 {[%clk 0:02:59.5]} 4... Nf6 {[%clk 0:02:58.2]} 5. O-O {[%clk 0:02:59]} 5...
Be7 {[%clk 0:02:58.7]} 6. Re1 {[%clk 0:02:59]} 6... b5 {[%clk 0:02:59.2]} 7. Bb3
{[%clk 0:02:59.1]} 7... d6 {[%clk 0:02:59.8]} 8. c3 {[%clk 0:02:59.4]} 8... O-O
{[%clk 0:02:58.6]} 9. h3 {[%clk 0:03:00.3]} 9... Bb7 {[%clk 0:02:58.7]} 10. d4
{[%clk 0:03:00.1]} 10... Re8 {[%clk 0:02:58.9]} 11. Nbd2 {[%clk 0:02:59.5]}
11... Bf8 {[%clk 0:02:58.5]} 12. a3 {[%clk 0:02:58.1]} 12... h6 {[%clk
0:02:58.1]} 13. Bc2 {[%clk 0:02:55.2]} 13... Nb8 {[%clk 0:02:57.8]} 14. b4
{[%clk 0:02:54.8]} 14... Nbd7 {[%clk 0:02:57.3]} 15. Bb2 {[%clk 0:02:54.5]}
15... c6 {[%clk 0:02:53.2]} 16. Nb3 {[%clk 0:02:52.8]} 16... Qc7 {[%clk
0:02:49.2]} 17. Na5 {[%clk 0:02:51]} 17... Rad8 {[%clk 0:02:48]} 18. Nxb7 {[%clk
0:02:48.8]} 18... Qxb7 {[%clk 0:02:47.9]} 19. a4 {[%clk 0:02:48.8]} 19... g6
{[%clk 0:02:41.8]} 20. axb5 {[%clk 0:02:42.9]} 20... axb5 {[%clk 0:02:40.5]} 21.
dxe5 {[%clk 0:02:41]} 21... Nxe5 {[%clk 0:02:36.7]} 22. Nxe5 {[%clk 0:02:38.7]}
22... dxe5 {[%clk 0:02:37.6]} 23. Qe2 {[%clk 0:02:37.4]} 23... Nh5 {[%clk
0:02:37.1]} 24. g3 {[%clk 0:02:31.7]} 24... Qd7 {[%clk 0:02:36.3]} 25. Kg2
{[%clk 0:02:28.5]} 25... Qd2 {[%clk 0:02:34.5]} 26. Bb3 {[%clk 0:02:26.7]} 26...
Qg5 {[%clk 0:02:29.9]} 27. Qf3 {[%clk 0:02:13.5]} 27... Re7 {[%clk 0:02:12.6]}
28. Bc1 {[%clk 0:02:02]} 28... Qf6 {[%clk 0:02:02.2]} 29. Ra6 {[%clk 0:02:00.4]}
29... Qxf3+ {[%clk 0:01:39.1]} 30. Kxf3 {[%clk 0:02:01.3]} 30... Rd3+ {[%clk
0:01:39.2]} 31. Re3 {[%clk 0:02:00.2]} 31... Rd6 {[%clk 0:01:30]} 32. Ke2 {[%clk
0:01:36.8]} 32... Red7 {[%clk 0:01:20.8]} 33. Rf3 {[%clk 0:01:36.8]} 33... Kg7
{[%clk 0:01:13.7]} 34. Ra8 {[%clk 0:01:24.3]} 34... f5 {[%clk 0:00:51.1]} 35.
Re3 {[%clk 0:00:54.1]} 35... f4 {[%clk 0:00:47.3]} 36. Rf3 {[%clk 0:00:54.1]}
36... g5 {[%clk 0:00:42.3]} 37. Bc2 {[%clk 0:00:53.1]} 37... Be7 {[%clk
0:00:27]} 38. Ra6 {[%clk 0:00:43.2]} 38... Nf6 {[%clk 0:00:21]} 39. Rd3 {[%clk
0:00:38]} 39... Nxe4 {[%clk 0:00:19.8]} 40. Rxd6 {[%clk 0:00:37.4]} 40... Nxd6
{[%clk 0:00:16.2]} 41. Rxc6 {[%clk 0:00:37.3]} 41... Bf6 {[%clk 0:00:14]} 42.
gxf4 {[%clk 0:00:32.4]} 42... exf4 {[%clk 0:00:11.8]} 43. Rc5 {[%clk 0:00:31.2]}
43... Nc4 {[%clk 0:00:09.7]} 44. Rxb5 {[%clk 0:00:28.7]} 44... Bxc3 {[%clk
0:00:08.8]} 45. Rc5 {[%clk 0:00:26.5]} 45... Re7+ {[%clk 0:00:06.8]} 46. Kd3
{[%clk 0:00:24.7]} 46... Be1 {[%clk 0:00:04]} 47. Rxc4 {[%clk 0:00:21.1]} 47...
Bxf2 {[%clk 0:00:03.9]} 48. Bd1 {[%clk 0:00:20.3]} 48... Kg6 {[%clk 0:00:01.4]}
49. Bf3 {[%clk 0:00:19.6]} 49... h5 {[%clk 0:00:01.4]} 50. Rc6+ {[%clk
0:00:18.8]} 50... Kf5 {[%clk 0:00:01.3]} 51. Bxh5 {[%clk 0:00:18.8]} 1-0